bitfinex-derivatives/quotes_SOLF0:USTF0_20260129
["timestamp","ask_amount","ask_price","bid_price","bid_amount"]
[1769714271412,72.16514595,115.9,115.83,33.95428881]
[1769714273407,72.16514595,115.9,115.82,186.98]
[1769714274310,79.94394595,115.89,115.82,186.98]
[1769714274908,79.94274595,115.91,115.83,14.84584465]
[1769714275107,72.16514595,115.91,115.83,7.06314465]
[1769714275414,72.16514595,115.91,115.86,7.7807]
[1769714276111,79.94074595,115.94,115.86,8.23201394]
[1769714276511,79.94074595,115.94,115.87,7.78]
[1769714279016,79.94074595,115.94,115.86,0.45131394]
[1769714280417,79.94074595,115.94,115.86,8.23201394]
[1769714281812,72.16514595,115.92,115.83,128.29625765]
[1769714282018,72.16514595,115.92,115.83,0.45131394]
[1769714283422,72.16514595,115.9,115.83,8.23351394]
[1769714285221,72.16514595,115.9,115.8,0.45131394]
[1769714285418,72.16514595,115.89,115.78,121.56691394]
[1769714285616,72.16514595,115.88,115.78,0.45131394]
[1769714285815,72.16514595,115.88,115.79,0.45131394]
[1769714286120,72.16514595,115.88,115.81,0.45131394]
[1769714286311,79.94314595,115.91,115.84,7.782]
[1769714286916,72.16514595,115.91,115.83,121.51421394]
[1769714287119,72.16514595,115.94,115.86,7.26993365]
[1769714289924,72.16514595,115.97,115.89,121.45181394]
[1769714290223,72.16514595,115.97,115.9,7.26993365]
[1769714290725,72.16514595,115.97,115.92,6.81861971]
[1769714290925,72.16514595,116.01,115.92,6.81861971]
[1769714291424,72.16514595,116.01,115.9,128.25673365]
[1769714291924,72.16514595,115.99,115.88,434.81883365]
[1769714292123,72.16514595,115.99,115.9,7.26993365]
[1769714292319,72.16514595,115.99,115.91,0.45131394]
[1769714292512,72.16514595,115.99,115.92,6.81861971]
[1769714292712,72.16514595,115.99,115.93,7.7759]
[1769714292931,72.16514595,116.02,115.94,7.26993365]
[1769714293228,72.16514595,116.02,115.95,6.81861971]
[1769714294623,72.16514595,116.02,115.95,14.59301971]
[1769714297625,72.16514595,116.02,115.93,6.81861971]
[1769714299232,72.16514595,116.02,115.92,7.7763]
[1769714299425,72.16514595,116.02,115.93,7.26993365]
[1769714300735,72.16514595,116.02,115.94,7.7753]
[1769714301329,79.93534595,116.02,115.92,14.59481971]
[1769714301529,79.93534595,116.02,115.9,120.9912]
[1769714301530,72.16514595,116.01,115.9,6.81861971]
[1769714301731,72.16514595,116.01,115.9,7.26993365]
[1769714301932,72.16514595,116.01,115.92,7.7767]
[1769714302132,72.16514595,116.01,115.91,121.43081394]
[1769714302347,72.16514595,116.01,115.92,6.81861971]
[1769714302532,72.16514595,116.01,115.94,7.26993365]
[1769714302830,72.16514595,116.01,115.94,0.45131394]
[1769714303235,72.16514595,116.04,115.96,0.45131394]
[1769714304036,72.16514595,116.04,115.96,8.22521394]
[1769714304238,72.16514595,116.04,115.96,0.45131394]
[1769714304637,72.16514595,116.04,115.98,7.7723]
[1769714304839,120.756,116.13,116.0,121.33981394]
[1769714305140,72.16514595,116.1,116.01,7.26993365]
[1769714305544,72.16514595,116.1,116.03,7.7693]
[1769714305851,72.16514595,116.1,116.02,25.50026814]
[1769714306141,72.16514595,116.1,116.04,7.7686]
[1769714306336,72.16514595,116.1,116.03,127.67401971]
[1769714306535,72.16514595,116.1,116.03,127.97782647]
[1769714307341,72.16514595,116.1,116.05,7.768]
[1769714307941,72.16514595,116.1,116.06,7.7672]
[1769714308149,72.16514595,116.14,116.07,127.93612647]
[1769714308444,72.16514595,116.14,116.07,0.30380676]
[1769714308638,72.16514595,116.14,116.07,7.7661]
[1769714308942,6.81861971,116.15,116.02,498.40747376]
[1769714308943,72.16514595,116.12,116.02,498.40747376]
[1769714309138,79.92864595,116.12,116.02,7.7695]
[1769714309446,79.92864595,116.12,116.01,121.17880676]
[1769714309737,72.16514595,116.08,115.98,0.30380676]
[1769714309940,72.16514595,116.08,115.98,120.9086]
[1769714310137,72.16514595,116.08,115.99,120.899]
[1769714310647,72.16514595,116.08,116.02,7.7698]
[1769714312536,72.16514595,116.12,116.02,120.8677]
[1769714313239,79.92854595,116.12,116.04,7.7685]
[1769714313438,79.92854595,116.12,116.01,121.18090676]
[1769714313642,72.16514595,116.08,115.99,26.47549995]
[1769714313940,72.16514595,116.08,115.99,120.8959]
[1769714314938,72.16514595,116.08,115.99,146.72389783]
[1769714315350,72.16514595,116.08,116.01,7.7706]
[1769714315541,72.16514595,116.06,115.98,0.31244438]
[1769714315845,72.16514595,116.06,115.95,121.24414438]
[1769714316042,72.16514595,116.04,115.95,121.24414438]
[1769714316440,72.16514595,116.04,115.97,7.7728]
[1769714316751,72.16514595,116.04,115.95,0.31244438]
[1769714317751,72.16514595,116.04,115.97,7.7733]
[1769714318149,72.16514595,116.04,115.95,121.25104438]
[1769714318351,72.16514595,116.04,115.98,7.7726]
[1769714318550,72.16514595,116.04,115.97,120.9191]
[1769714319240,72.16514595,116.04,115.99,7.7718]
[1769714323050,72.16514595,116.04,115.97,7.7728]
[1769714323254,72.16514595,116.02,115.94,25.37277271]
[1769714323448,72.16514595,116.02,115.92,121.28364438]
[1769714324338,72.16514595,116.02,115.95,7.7741]
[1769714325144,72.16514595,116.02,115.95,120.9391]
[1769714326350,72.16514595,116.02,115.97,7.7734]
[1769714327341,7.7687,116.05,115.99,7.7719]
[1769714327342,72.16514595,116.05,115.99,7.7719]
[1769714328850,72.16514595,116.05,115.98,7.7727]
[1769714329057,72.16514595,116.05,115.94,128.07956409]
[1769714329263,120.8081,116.08,115.94,121.26094438]
[1769714329264,72.16514595,116.03,115.94,121.26094438]
[1769714330551,72.16514595,116.03,115.93,147.2768918]
[1769714330854,72.16514595,115.99,115.94,7.7753]
[1769714331651,72.16514595,115.99,115.92,7.7761]
[1769714331852,78.98376566,115.99,115.88,465.46574438]
[1769714332057,78.98376566,115.99,115.92,7.7767]
[1769714333254,78.98376566,115.99,115.93,7.776]
[1769714334364,72.16514595,115.99,115.91,241.9545]
[1769714335467,72.16514595,115.99,115.94,7.7751]
[1769714336165,72.16514595,115.99,115.93,7.776]
[1769714337767,72.16514595,115.99,115.92,7.7767]
[1769714338159,78.98376566,115.99,115.92,7.7767]
[1769714339071,72.16514595,115.96,115.88,344.14]
[1769714339260,72.16514595,115.96,115.87,121.48447701]
[1769714339568,79.93924595,115.96,115.86,121.0317]
[1769714339763,72.16514595,115.94,115.85,336.79707651]
[1769714339966,72.16514595,115.94,115.85,0.46487701]
[1769714341366,72.16514595,115.94,115.87,7.7799]
[1769714342362,72.16514595,115.94,115.84,527.2728]
[1769714342363,79.94074595,115.94,115.85,7.7811]
[1769714342569,79.94074595,115.94,115.82,127.89221971]
[1769714342570,72.16514595,115.9,115.82,121.0736]
[1769714342875,72.16514595,115.9,115.81,121.54957701]
[1769714343964,72.16514595,115.93,115.84,121.52037701]
[1769714344775,72.16514595,115.93,115.84,147.93675243]
[1769714345270,72.16514595,115.93,115.86,7.7806]
[1769714346974,72.16514595,115.93,115.85,128.3288923]
[1769714347372,72.16514595,115.93,115.85,0.46487701]
[1769714347772,72.16514595,115.93,115.86,7.7807]
[1769714348476,72.16514595,115.93,115.87,7.78]
[1769714348877,72.16514595,115.93,115.86,121.0332]
[1769714349081,72.16514595,115.93,115.86,121.49807701]
[1769714349383,72.16514595,115.96,115.87,0.46487701]
[1769714349777,72.16514595,115.96,115.89,7.7787]
[1769714349978,79.93924595,115.96,115.89,7.7787]
[1769714352780,72.16514595,115.94,115.85,127.86261529]
[1769714354186,72.16514595,115.94,115.85,121.50787701]
[1769714354378,72.16514595,115.94,115.87,7.7799]
[1769714356678,72.16514595,115.94,115.85,0.46487701]
[1769714356679,72.16514595,115.94,115.84,33.23599071]
[1769714356880,86.76076124,115.94,115.86,7.7807]
[1769714357287,72.16514595,115.92,115.86,7.7807]
[1769714357690,72.16514595,115.92,115.84,26.41637542]
[1769714357691,72.16514595,115.92,115.84,7.7816]
[1769714357984,72.16514595,115.92,115.82,6.81961529]
[1769714357985,72.16514595,115.9,115.82,121.53917701]
[1769714358175,72.16514595,115.9,115.82,128.3587923]
[1769714358375,72.16514595,115.9,115.85,7.7811]
[1769714358978,72.16514595,115.9,115.87,7.7799]
[1769714360585,72.16514595,115.9,115.81,121.54877701]
[1769714360888,72.16514595,115.9,115.81,0.46487701]
[1769714362385,72.16514595,115.9,115.82,7.7833]
[1769714362888,72.16514595,115.9,115.81,8.24857701]
[1769714362889,79.94334595,115.9,115.81,8.24857701]
[1769714363284,6.81961529,115.91,115.8,1.50152094]
[1769714363285,72.16514595,115.88,115.8,1.50152094]
[1769714363589,72.16514595,115.88,115.8,9.28622094]
[1769714365087,72.16514595,115.88,115.81,0.46487701]
[1769714365686,72.16514595,115.88,115.83,7.7827]
[1769714366890,6.81961529,115.91,115.84,0.48508991]
[1769714367087,368.18,115.95,115.8,390.29379091]
[1769714367088,25.88,115.95,115.8,390.29379091]
[1769714367288,70.90659096,115.99,115.92,127.79171529]
[1769714367588,70.90659096,115.99,115.91,1.50109994]
[1769714367883,70.90659096,115.99,115.9,120.9906]
[1769714368787,70.90659096,115.99,115.9,7.7777]
[1769714368991,6.81961529,115.98,115.87,121.0209]
[1769714369189,71.65714093,115.97,115.87,121.0209]
[1769714369690,120.8922,116.0,115.85,122.54279994]
[1769714369691,78.47675622,115.94,115.85,122.54279994]
[1769714369987,71.65714093,115.94,115.85,122.54279994]
[1769714370188,71.65714093,115.94,115.87,7.7799]
[1769714371690,78.47675622,115.94,115.85,7.781]
[1769714372893,71.65714093,115.91,115.85,7.781]
[1769714373780,71.65714093,115.91,115.83,122.56379994]
[1769714373781,71.65714093,115.91,115.83,9.28339994]
[1769714375490,71.65714093,115.91,115.83,7.7823]
[1769714375686,71.65714093,115.89,115.83,7.7823]
[1769714377288,71.65714093,115.89,115.81,7.7838]
[1769714377687,120.9789,115.92,115.8,25.52056997]
[1769714377688,71.65714093,115.87,115.8,25.52056997]
[1769714377888,71.65714093,115.87,115.79,345.98210424]
[1769714378595,71.65714093,115.87,115.79,371.83654158]
[1769714379390,71.65714093,115.87,115.79,379.62154158]
[1769714381293,71.65714093,115.87,115.79,378.11943734]
[1769714381795,71.65714093,115.85,115.77,9.16507543]
[1769714382096,71.65714093,115.85,115.74,11.94708315]
[1769714382297,71.65714093,115.85,115.75,1.50262311]
[1769714382595,71.65714093,115.85,115.75,2.88129854]
[1769714383398,71.65714093,115.85,115.76,7.7873]
[1769714383796,71.65714093,115.85,115.76,33.60691454]
[1769714383991,71.65714093,115.83,115.76,33.60691454]
[1769714384195,71.65714093,115.83,115.76,7.7873]
[1769714385192,71.65714093,115.83,115.77,7.7866]
[1769714386087,71.65714093,115.83,115.75,2.88129854]
[1769714386293,71.65714093,115.83,115.75,148.17462739]
[1769714386495,71.65714093,115.83,115.76,1.37867543]
[1769714387300,71.65714093,115.83,115.77,7.7867]
[1769714388596,71.65714093,115.83,115.75,34.93823996]
[1769714389500,71.65714093,115.83,115.74,3.74879243]
[1769714389701,71.65714093,115.81,115.74,3.74879243]
[1769714390203,70.53750073,115.77,115.7,25.74734338]
[1769714390499,70.53750073,115.77,115.66,126.36796786]
[1769714390703,6.81961529,115.78,115.66,133.18898315]
[1769714390704,70.53750073,115.75,115.66,133.18898315]
[1769714390900,70.53750073,115.75,115.68,11.94708315]
[1769714391399,70.53750073,115.75,115.68,5.12746786]
[1769714391597,70.53750073,115.75,115.68,31.34667454]
[1769714392303,70.53750073,115.75,115.69,7.7919]
[1769714393198,70.53750073,115.75,115.7,7.7915]
[1769714395410,70.53750073,115.75,115.68,7.7924]
[1769714396508,70.53750073,115.75,115.66,5.31217447]
[1769714397297,78.32590073,115.75,115.67,7.7933]
[1769714398005,70.53750073,115.75,115.66,126.55357447]
[1769714399304,70.53750073,115.75,115.68,7.7927]
[1769714400107,69.78274472,115.77,115.69,12.13178976]
[1769714400303,69.78274472,115.77,115.69,5.31217447]
[1769714401301,69.78274472,115.77,115.7,7.7909]
[1769714404505,69.78274472,115.77,115.7,5.31217447]
[1769714405599,69.78274472,115.77,115.69,128.04276606]
[1769714407508,69.78274472,115.77,115.71,7.7908]
[1769714407909,69.78274472,115.77,115.69,7.7917]
[1769714409511,77.56954472,115.77,115.69,7.7917]
[1769714409911,69.78274472,115.74,115.67,7.7934]
[1769714414211,77.57174472,115.74,115.65,14.61032883]
[1769714414400,6.83266606,115.73,115.62,458.35108842]
[1769714414607,69.78274472,115.72,115.63,5.31217447]
[1769714414806,69.78274472,115.72,115.63,6.81645389]
[1769714415508,77.57294472,115.72,115.65,7.7946]
[1769714415717,77.57294472,115.72,115.63,6.81645389]
[1769714415907,6.83266606,115.73,115.62,357.52604232]
[1769714415908,69.78274472,115.7,115.62,357.52604232]
[1769714416715,77.57434472,115.7,115.62,25.77292837]
[1769714416915,77.57434472,115.7,115.61,344.96]
[1769714417210,77.57434472,115.7,115.61,346.46450704]
[1769714417414,77.57434472,115.7,115.62,7.7963]
[1769714417618,69.78274472,115.7,115.61,346.46450704]
[1769714417915,69.78274472,115.7,115.61,351.77668151]
[1769714418117,69.78274472,115.7,115.63,7.7962]
[1769714418613,69.78274472,115.7,115.64,7.7953]
[1769714419314,69.78274472,115.72,115.66,7.7936]
[1769714419519,69.78274472,115.72,115.64,5.31217447]
[1769714419818,69.78274472,115.72,115.65,7.7947]
[1769714421414,69.78274472,115.72,115.61,479.90384757]
[1769714421815,69.78274472,115.72,115.62,5.31217447]
[1769714422116,69.78274472,115.7,115.64,5.31217447]
[1769714423118,69.78274472,115.7,115.65,7.7942]
[1769714423314,69.78274472,115.7,115.61,346.46450704]
[1769714423617,69.78274472,115.7,115.63,7.7962]
[1769714424010,69.78274472,115.7,115.63,5.31217447]
[1769714424520,69.78274472,115.7,115.64,7.7949]
[1769714425521,69.78274472,115.7,115.63,7.7962]
[1769714425715,69.78274472,115.7,115.61,1.50450704]
[1769714425921,69.78274472,115.68,115.61,1.50450704]
[1769714427416,69.78274472,115.68,115.62,7.7968]
[1769714429523,69.78274472,115.68,115.63,7.7962]
[1769714430713,69.78274472,115.72,115.64,12.23627787]
[1769714431425,69.78274472,115.72,115.64,5.40361181]
[1769714431717,69.78274472,115.72,115.65,7.7949]
[1769714432116,69.78274472,115.72,115.62,478.63327787]
[1769714432316,69.78274472,115.72,115.63,5.40361181]
[1769714432516,69.78274472,115.72,115.63,126.67741181]
[1769714433116,69.78274472,115.75,115.66,133.46119115]
[1769714433318,69.78274472,115.75,115.67,5.38902509]
[1769714434414,69.78274472,115.75,115.68,7.7928]
[1769714434726,69.78274472,115.73,115.64,126.64642509]
[1769714435916,69.78274472,115.73,115.66,7.7936]
[1769714439024,69.78274472,115.7,115.61,6.89353213]
[1769714439616,69.78274472,115.7,115.63,7.7962]
[1769714441325,69.78274472,115.7,115.63,5.38902509]
[1769714442334,69.78274472,115.7,115.65,7.7947]
[1769714444043,69.78274472,115.7,115.63,13.18462509]
[1769714444234,69.78274472,115.7,115.63,7.7956]
[1769714444434,69.78274472,115.7,115.64,7.7953]
[1769714444633,69.78274472,115.7,115.63,126.66402509]
[1769714445243,69.78274472,115.7,115.63,133.49669115]
[1769714445636,69.78274472,115.7,115.63,142.12769115]
[1769714446236,69.78274472,115.7,115.63,7.7957]
[1769714446736,69.78274472,115.7,115.61,135.01889819]
[1769714446943,69.78274472,115.7,115.63,7.7962]
[1769714448136,77.57484472,115.7,115.61,13.72619819]
[1769714448539,77.57484472,115.7,115.61,6.89353213]
[1769714448932,77.57484472,115.7,115.62,7.7963]
[1769714449240,77.57484472,115.7,115.61,6.89353213]
[1769714449930,77.57484472,115.7,115.61,1.50450704]
[1769714450340,69.78274472,115.68,115.59,5.38902509]
[1769714450838,69.78274472,115.68,115.59,7.7983]
[1769714452345,69.78274472,115.66,115.59,7.7983]
[1769714454237,69.78274472,115.66,115.6,7.7983]
[1769714454435,69.78274472,115.66,115.58,346.62486486]
[1769714454947,84.40981078,115.66,115.58,9.30436486]
[1769714455138,69.78274472,115.61,115.5,5.38902509]
[1769714455339,69.78274472,115.57,115.48,3.74879243]
[1769714455745,69.78274472,115.57,115.48,5.25502512]
[1769714456348,69.78274472,115.57,115.49,7.8052]
[1769714456941,69.78274472,115.57,115.48,5.25502512]
[1769714457150,69.78274472,115.57,115.48,126.68582512]
[1769714458351,69.78274472,115.57,115.5,7.8049]
[1769714460553,69.78274472,115.57,115.51,7.8042]
[1769714460752,69.78274472,115.57,115.5,126.92570557]
[1769714461751,69.78274472,115.57,115.52,7.8035]
[1769714462264,59.75913321,115.57,115.53,7.8027]
[1769714463751,6.83266606,115.65,115.55,15.53871708]
[1769714463951,250.25266606,115.67,115.57,15.53871708]
[1769714464159,6.83266606,115.67,115.57,15.53871708]
[1769714464455,65.50758448,115.66,115.59,136.85391708]
[1769714464662,65.50758448,115.66,115.57,121.3365]
[1769714464859,65.50758448,115.66,115.6,7.7981]
[1769714465058,65.50758448,115.66,115.59,136.85131708]
[1769714465255,65.50758448,115.66,115.6,6.83266606]
[1769714465562,65.50758448,115.66,115.59,136.85131708]
[1769714465563,65.50758448,115.66,115.59,7.7983]
[1769714467056,65.50758448,115.66,115.57,7.7997]
[1769714467856,65.50758448,115.66,115.58,7.7995]
[1769714469564,72.35247715,115.66,115.58,7.7995]
[1769714470359,65.50758448,115.65,115.53,136.91661708]
[1769714470566,65.50758448,115.63,115.53,136.91661708]
[1769714471167,65.50758448,115.63,115.53,145.54761708]
[1769714471471,65.50758448,115.63,115.55,7.8015]
[1769714473770,73.30398448,115.63,115.55,7.8015]
[1769714474466,65.50758448,115.63,115.55,23.34021708]
[1769714474970,65.50758448,115.63,115.55,7.8015]
[1769714475468,65.50758448,115.63,115.53,23.34111708]
[1769714476362,65.50758448,115.61,115.54,7.8022]
[1769714476760,65.50758448,115.61,115.54,15.53871708]
[1769714477259,65.50758448,115.63,115.56,7.8007]
[1769714478271,65.50758448,115.63,115.57,7.8003]
[1769714478771,65.50758448,115.63,115.55,15.53871708]
[1769714479272,65.50758448,115.63,115.56,7.801]
[1769714479471,65.50758448,115.63,115.56,15.53871708]
[1769714480066,65.50758448,115.63,115.57,7.7999]
[1769714484974,65.50758448,115.63,115.54,15.53871708]
[1769714486270,65.50758448,115.63,115.56,15.44927866]
[1769714487575,65.50758448,115.63,115.56,7.8003]
[1769714491671,70.76137689,115.61,115.54,15.44927866]
[1769714491877,70.76137689,115.59,115.51,15.44927866]
[1769714492371,70.76137689,115.59,115.49,286.2]
[1769714492570,70.76137689,115.55,115.48,5.25502512]
[1769714492776,70.76137689,115.55,115.48,3.74879243]
[1769714492980,70.76137689,115.53,115.48,3.74879243]
[1769714494180,69.7817872,115.51,115.43,19.32955504]
[1769714494773,6.84489267,115.5,115.42,1.50704805]
[1769714494968,69.7817872,115.49,115.42,20.83660309]
[1769714495179,69.7817872,115.49,115.43,7.8094]
[1769714495680,69.7817872,115.49,115.42,20.83660309]
[1769714496579,69.7817872,115.49,115.42,1.50704805]
[1769714497286,69.7817872,115.49,115.43,19.32955504]
[1769714497981,69.7817872,115.52,115.45,19.32955504]
[1769714499284,69.7817872,115.52,115.46,7.8076]
[1769714501181,69.7817872,115.56,115.47,7.8066]
[1769714501580,69.7817872,115.54,115.47,7.8066]
[1769714502089,69.7817872,115.54,115.45,89.13775504]
[1769714502590,69.7817872,115.54,115.45,27.13775504]
[1769714502786,69.7817872,115.52,115.42,19.32955504]
[1769714502987,69.7817872,115.5,115.42,19.32955504]
[1769714504379,69.7817872,115.5,115.43,7.8096]
[1769714508487,69.7817872,115.5,115.43,19.32955504]
[1769714508691,69.7817872,115.5,115.44,19.32955504]
[1769714509086,69.7817872,115.53,115.45,19.32955504]
[1769714509990,69.7817872,115.53,115.46,19.32955504]
[1769714510192,69.7817872,115.53,115.47,19.32955504]
[1769714510695,69.7817872,115.53,115.48,7.8062]
[1769714512192,69.7817872,115.53,115.44,26.17444771]
[1769714512390,76.62667987,115.53,115.44,19.32955504]
[1769714512895,76.62667987,115.53,115.42,20.83657046]
[1769714513196,69.7817872,115.5,115.42,1.50701542]
[1769714514192,69.7817872,115.5,115.44,7.8091]
[1769714516800,69.7817872,115.5,115.43,7.8097]
[1769714517301,69.7817872,115.5,115.44,7.8091]
[1769714517489,69.7817872,115.5,115.43,19.27422573]
[1769714517991,69.7817872,115.5,115.43,364.91422573]
[1769714519103,69.7817872,115.5,115.45,7.8084]
[1769714524393,69.7817872,115.5,115.44,7.809]
[1769714524701,69.7817872,115.5,115.42,347.18701542]
[1769714525002,69.7817872,115.5,115.43,7.8091]
[1769714527303,69.7817872,115.5,115.44,19.27422573]
[1769714528197,69.7817872,115.5,115.45,7.8083]
[1769714531699,14.66797387,115.53,115.45,7.8083]
[1769714531700,68.38059252,115.49,115.45,7.8083]
[1769714532003,71.26388885,115.49,115.45,7.8083]
[1769714532401,71.26388885,115.49,115.43,345.68]
[1769714532602,121.3926,115.52,115.42,1.50701542]
[1769714532800,147.343,115.54,115.42,76.92396736]
[1769714532995,2.88329633,115.49,115.42,76.92396736]
[1769714533197,2.88329633,115.48,115.42,76.92396736]
[1769714533699,2.88329633,115.48,115.42,74.04067103]
[1769714534007,2.88329633,115.47,115.42,81.85107103]
[1769714534202,7.8044,115.51,115.42,81.85107103]
[1769714534203,2.88329633,115.46,115.42,1.50701542]
[1769714534407,2.88329633,115.45,115.38,101.26694595]
[1769714534708,2.88329633,115.44,115.39,9.31964179]
[1769714535102,2.88329633,115.44,115.39,1.50734179]
[1769714535504,2.88329633,115.43,115.39,1.50734179]
[1769714535810,2.88329633,115.43,115.38,7.8131]
[1769714537102,2.88329633,115.44,115.38,7.8131]
[1769714537298,2.88329633,115.43,115.37,74.04125861]
[1769714537708,2.88329633,115.43,115.37,76.92455494]
[1769714538104,2.88329633,115.43,115.37,74.04125861]
[1769714538405,2.88329633,115.43,115.38,7.8125]
[1769714538608,2.88329633,115.43,115.37,76.92455494]
[1769714539110,2.88329633,115.41,115.35,194.10085561]
[1769714539310,108.29,115.49,115.37,196.96405194]
[1769714539611,2.88329633,115.43,115.37,75.41695194]
[1769714540016,2.88329633,115.44,115.38,2.88329633]
[1769714540408,2.88329633,115.42,115.36,2.88329633]
[1769714540611,2.88329633,115.41,115.34,2.88329633]
[1769714540811,6.41333825,115.45,115.36,2.88329633]
[1769714541012,2.88329633,115.42,115.37,7.8138]
[1769714541214,2.88329633,115.42,115.36,2.88329633]
[1769714542315,2.88329633,115.42,115.38,7.8131]
[1769714542518,2.88329633,115.41,115.35,2.88329633]
[1769714542715,2.88329633,115.4,115.34,196.99555194]
[1769714543023,25.97,115.46,115.34,196.99555194]
[1769714543024,7.8084,115.45,115.37,7.8138]
[1769714543215,2.88329633,115.43,115.36,196.97525194]
[1769714543622,2.88329633,115.42,115.36,121.5583]
[1769714544419,2.88329633,115.41,115.38,7.8126]
[1769714544807,2.88329633,115.41,115.35,121.5658]
[1769714545011,2.88329633,115.41,115.37,7.8138]
[1769714545814,7.8085,115.45,115.37,7.8138]
[1769714546114,7.8085,115.45,115.36,7.8143]
[1769714546115,2.88329633,115.4,115.36,7.8143]
[1769714546319,25.97,115.43,115.32,2.88329633]
[1769714546517,2.88329633,115.38,115.31,124.49139633]
[1769714546712,2.88329633,115.38,115.31,197.02505194]
[1769714546918,2.88329633,115.38,115.34,7.8153]
[1769714547623,2.88329633,115.4,115.34,7.8153]
[1769714549421,2.88329633,115.39,115.34,7.8153]
[1769714549620,2.88329633,115.39,115.35,7.815]
[1769714550724,7.8104,115.42,115.35,7.815]
[1769714551023,2.88329633,115.4,115.35,7.815]
[1769714551412,2.88329633,115.4,115.36,7.8144]
[1769714551618,14.6871649,115.43,115.36,7.8144]
[1769714552514,7.8105,115.42,115.36,7.8144]
[1769714553929,32.8473649,115.46,115.36,194.09275561]
[1769714554222,6.8773649,115.49,115.39,121.527]
[1769714554526,6.8773649,115.49,115.38,194.06775561]
[1769714554727,6.8773649,115.49,115.39,121.5265]
[1769714554926,32.8473649,115.49,115.39,121.5246]
[1769714555115,6.8773649,115.49,115.39,194.05825561]
[1769714555825,6.8773649,115.49,115.43,7.8097]
[1769714556730,14.6836649,115.49,115.42,7.8104]
[1769714557820,14.6836649,115.49,115.43,7.8097]
[1769714561227,7.8063,115.49,115.43,7.8097]
[1769714561528,7.8063,115.49,115.42,7.8104]
[1769714561934,7.8065,115.48,115.42,7.8104]
[1769714562230,7.8065,115.48,115.39,128.4019649]
[1769714562231,6.8773649,115.47,115.39,7.8119]
[1769714563327,7.8078,115.46,115.39,7.8119]
[1769714564129,128.2696649,115.52,115.42,72.53365561]
[1769714564433,461.9696649,115.52,115.42,72.53365561]
[1769714564929,7.8057,115.5,115.43,7.8097]
[1769714567034,7.8057,115.49,115.43,7.8097]
[1769714567728,121.3613,115.55,115.44,72.53365561]
[1769714567928,6.8773649,115.56,115.45,79.41102051]
[1769714568129,333.6,115.55,115.45,79.41102051]
[1769714568833,7.803,115.53,115.47,7.8068]
[1769714571429,333.6,115.55,115.43,72.53365561]
[1769714571430,154.2223649,115.54,115.43,72.53365561]
[1769714571636,147.3528,115.53,115.43,72.53365561]
[1769714573530,154.2223649,115.54,115.44,72.53365561]
[1769714575437,7.8044,115.51,115.45,7.8083]
[1769714575730,10.68744144,115.51,115.45,7.8083]
[1769714576036,7.8051,115.5,115.44,83.22579705]
[1769714576337,2.88304144,115.52,115.46,2.88304144]
[1769714576735,2.88304144,115.52,115.45,2.88304144]
[1769714577239,2.88304144,115.51,115.45,10.69134144]
[1769714578325,2.88304144,115.51,115.46,7.8077]
[1769714578533,7.803,115.54,115.48,2.88304144]
[1769714579537,7.803,115.54,115.48,10.68924144]
[1769714579729,7.803,115.54,115.49,2.88304144]
[1769714580342,230.24146654,115.57,115.52,2.88304144]
[1769714580532,2.88304144,115.55,115.48,72.45800679]
[1769714580731,230.24146654,115.57,115.5,2.88304144]
[1769714580936,2.88304144,115.59,115.53,2.88304144]
[1769714581138,2.88304144,115.59,115.51,72.45800679]
[1769714581433,2.88304144,115.58,115.52,2.88304144]
[1769714581639,334.98,115.6,115.51,72.45800679]
[1769714582440,7.7997,115.58,115.52,7.8036]
[1769714582641,334.98,115.6,115.52,80.26160679]
[1769714582839,128.14627392,115.62,115.52,72.45800679]
[1769714583036,335.62,115.61,115.52,79.31368071]
[1769714583239,121.3176,115.59,115.49,72.45800679]
[1769714583942,6.85567392,115.58,115.49,72.45800679]
[1769714584337,128.16447392,115.6,115.5,72.45800679]
[1769714584543,6.85567392,115.6,115.5,72.45800679]
[1769714584846,7.7995,115.59,115.52,80.26160679]
[1769714585035,335.62,115.61,115.52,72.45800679]
[1769714585638,121.3226,115.59,115.5,72.45800679]
[1769714586643,121.3226,115.59,115.47,72.45800679]
[1769714586644,121.3386,115.57,115.47,72.45800679]
[1769714587840,121.3386,115.57,115.46,72.45800679]
[1769714588040,128.23262006,115.54,115.46,72.45800679]
[1769714588246,463.99262006,115.54,115.44,72.45800679]
[1769714588445,7.8037,115.52,115.45,72.45800679]
[1769714589145,342.62022006,115.54,115.46,7.8077]
[1769714589644,342.62022006,115.54,115.45,72.45800679]
[1769714590241,128.24112006,115.53,115.45,72.45800679]
[1769714591246,128.24112006,115.53,115.42,6.86022006]
[1769714591247,128.26342006,115.51,115.42,72.45800679]
[1769714591645,6.86022006,115.51,115.42,72.45800679]